bitfinex-derivatives/quotes_BTCF0:USTF0_20250127
["timestamp","ask_amount","ask_price","bid_price","bid_amount"]
[1737979334477,0.4608,98900.0,98887.0,0.2122]
[1737979335478,0.4608,98900.0,98898.0,0.202337]
[1737979335978,0.4608,98900.0,98899.0,0.202336]
[1737979336668,0.4618,98900.0,98899.0,0.202336]
[1737979337368,0.1,98900.0,98899.0,0.202336]
[1737979337772,0.00015171,98909.0,98908.0,0.202318]
[1737979339070,0.00015171,98909.0,98908.0,0.203318]
[1737979339266,0.00315171,98909.0,98908.0,0.203318]
[1737979345285,0.00015171,98909.0,98908.0,0.202318]
[1737979345492,0.00015171,98909.0,98908.0,0.204318]
[1737979346185,0.00115171,98909.0,98908.0,0.202318]
[1737979346381,0.00115171,98909.0,98891.0,0.202351]
[1737979346690,0.3608,98906.0,98897.0,0.20234]
[1737979347592,0.3608,98906.0,98890.0,0.00015171]
[1737979347788,0.3608,98906.0,98898.0,0.202338]
[1737979348095,0.3608,98906.0,98890.0,0.00015171]
[1737979348385,0.3608,98894.0,98890.0,0.00015171]
[1737979348591,0.2148,98893.0,98890.0,0.00015171]
[1737979348781,0.2148,98893.0,98892.0,0.202351]
[1737979349178,0.3618,98906.0,98898.0,0.001]
[1737979349388,0.3618,98906.0,98905.0,0.202324]
[1737979350177,0.3618,98906.0,98890.0,0.36095171]
[1737979350393,0.3618,98906.0,98900.0,0.202334]
[1737979350591,0.3618,98906.0,98890.0,0.36991855]
[1737979350792,0.002,98893.0,98890.0,0.00015171]
[1737979352594,0.002,98893.0,98890.0,0.00115171]
[1737979352982,0.002,98893.0,98890.0,0.00015171]
[1737979353386,0.002,98893.0,98891.0,0.202352]
[1737979353786,0.3608,98903.0,98902.0,0.20233]
[1737979355288,0.3608,98903.0,98892.0,0.3608]
[1737979355591,0.3608,98903.0,98890.0,0.14780885]
[1737979355592,0.3608,98894.0,98890.0,0.00015171]
[1737979356487,0.3608,98903.0,98890.0,0.00015171]
[1737979356898,0.36980869,98903.0,98891.0,0.202352]
[1737979357285,0.36980869,98903.0,98890.0,0.00115171]
[1737979357787,0.36980869,98903.0,98890.0,0.24346376]
[1737979357985,0.36980869,98903.0,98890.0,0.24246376]
[1737979358186,0.36980869,98903.0,98896.0,0.202342]
[1737979358789,0.36980869,98903.0,98890.0,0.00015171]
[1737979358989,0.36980869,98903.0,98900.0,0.202334]
[1737979359788,0.36980869,98903.0,98890.0,0.00015171]
[1737979359985,0.3608,98903.0,98901.0,0.202331]
[1737979360492,0.00015171,98909.0,98908.0,0.202318]
[1737979362182,0.00015171,98909.0,98892.0,0.411387]
[1737979362183,0.00015171,98909.0,98892.0,0.3608]
[1737979362387,0.3608,98894.0,98890.0,0.00015171]
[1737979362994,0.3608,98901.0,98890.0,0.00015171]
[1737979363389,0.3608,98891.0,98890.0,0.00015171]
[1737979365293,0.3608,98891.0,98890.0,0.00115171]
[1737979365483,0.563153,98891.0,98890.0,0.00115171]
[1737979365686,0.202365,98885.0,98884.0,0.30287137]
[1737979365900,0.563165,98885.0,98884.0,0.01228417]
[1737979366297,0.202368,98884.0,98867.0,0.202402]
[1737979366499,0.3608,98873.0,98862.0,0.00151714]
[1737979366696,0.3608,98873.0,98863.0,0.202409]
[1737979366884,0.3608,98873.0,98862.0,0.00151714]
[1737979367089,0.3608,98873.0,98866.0,0.202404]
[1737979368101,0.00015171,98877.0,98866.0,0.3628]
[1737979368297,0.00015171,98877.0,98866.0,0.002]
[1737979368495,0.00015171,98877.0,98876.0,0.202383]
[1737979369486,0.00215171,98877.0,98876.0,0.274683]
[1737979370999,0.00215171,98877.0,98876.0,0.28360628]
[1737979371196,0.00215171,98877.0,98876.0,0.28460628]
[1737979371700,0.00015171,98877.0,98876.0,0.28460628]
[1737979372404,0.00015171,98877.0,98876.0,0.275683]
[1737979373004,0.00015171,98877.0,98876.0,0.276683]
[1737979373599,0.00115171,98877.0,98876.0,0.0743]
[1737979373803,0.00115171,98877.0,98876.0,0.0733]
[1737979374205,0.00115171,98877.0,98876.0,0.275683]
[1737979378209,0.36195171,98877.0,98876.0,0.001]
[1737979380119,0.36195171,98877.0,98876.0,0.203383]
[1737979380319,0.00115171,98877.0,98876.0,0.203383]
[1737979380510,0.44358424,98895.0,98890.0,0.202355]
[1737979380704,0.4343,98895.0,98891.0,0.202352]
[1737979381018,0.4343,98895.0,98880.0,0.14765714]
[1737979381316,0.00944659,98903.0,98881.0,0.1448]
[1737979381617,0.0735,98908.0,98902.0,0.20233]
[1737979382216,0.0735,98908.0,98901.0,0.20233]
[1737979382417,0.0735,98908.0,98898.0,0.202337]
[1737979382620,0.0735,98908.0,98886.0,0.3608]
[1737979382915,0.0735,98908.0,98884.0,0.050591]
[1737979382916,0.001,98895.0,98874.0,0.411396]
[1737979383109,0.3608,98892.0,98889.0,0.202356]
[1737979383309,0.3608,98892.0,98887.0,0.20236]
[1737979383507,0.18111843,98893.0,98881.0,0.15408096]
[1737979383710,0.18111843,98893.0,98892.0,0.202351]
[1737979384310,0.57262485,98905.0,98904.0,0.202326]
[1737979384510,0.57210484,98905.0,98904.0,0.202326]
[1737979386015,0.21130484,98905.0,98904.0,0.202326]
[1737979386212,0.21130484,98905.0,98904.0,0.563126]
[1737979386620,0.21230484,98905.0,98904.0,0.563126]
[1737979387007,0.21230484,98905.0,98904.0,0.57223668]
[1737979387208,0.001,98905.0,98904.0,0.57223668]
[1737979387412,0.00015171,98915.0,98914.0,0.202306]
[1737979387810,0.3608,98925.0,98924.0,0.202285]
[1737979389219,0.3608,98925.0,98919.0,0.202295]
[1737979389621,0.3608,98925.0,98913.0,0.3608]
[1737979389815,0.3608,98925.0,98920.0,0.202292]
[1737979390015,0.3608,98925.0,98914.0,0.001]
[1737979390215,0.001,98915.0,98914.0,0.203306]
[1737979390818,0.3608,98925.0,98914.0,0.001]
[1737979391021,0.202288,98923.0,98919.0,0.001]
[1737979391222,0.3638,98925.0,98919.0,0.001]
[1737979391418,0.202293,98920.0,98919.0,0.001]
[1737979391624,0.050572,98923.0,98883.0,0.3608]
[1737979391920,0.563144,98895.0,98880.0,0.202375]
[1737979392120,0.3608,98883.0,98875.0,0.1575]
[1737979392426,0.3608,98883.0,98875.0,0.0818]
[1737979392817,0.3608,98883.0,98876.0,0.202383]
[1737979393627,0.3608,98883.0,98876.0,0.36307599]
[1737979394526,0.3618,98883.0,98876.0,0.36307599]
[1737979394915,0.7226,98883.0,98869.0,0.00015163]
[1737979395115,0.7226,98883.0,98861.0,0.42466866]
[1737979395116,0.20241,98863.0,98861.0,0.42466866]
[1737979395416,0.3608,98862.0,98861.0,0.42358866]
[1737979397029,0.3608,98862.0,98861.0,0.42458866]
[1737979397532,0.3608,98862.0,98853.0,0.48518132]
[1737979397533,0.3608,98862.0,98853.0,0.00108]
[1737979397715,0.3638,98862.0,98861.0,0.001]
[1737979398425,0.3638,98862.0,98852.0,0.20258371]
[1737979398625,0.3638,98862.0,98852.0,0.00015171]
[1737979399524,0.3608,98853.0,98852.0,0.00015171]
[1737979400430,0.005,98862.0,98860.0,0.202416]
[1737979400729,0.3608,98878.0,98866.0,0.202404]
[1737979400918,0.3608,98891.0,98866.0,0.202404]
[1737979401524,0.3608,98891.0,98881.0,0.202373]
[1737979401728,0.3608,98900.0,98881.0,0.202373]
[1737979401928,0.09740783,98899.0,98898.0,0.202338]
[1737979402321,0.3608,98921.0,98920.0,0.202293]
[1737979403222,0.3608,98921.0,98914.0,0.202305]
[1737979403432,0.3608,98921.0,98911.0,0.00015171]
[1737979403728,0.3608,98912.0,98911.0,0.00015171]
[1737979404728,0.4357,98912.0,98911.0,0.001]
[1737979405436,0.202329,98903.0,98884.0,0.202366]
[1737979405632,0.3608,98890.0,98884.0,0.202366]
[1737979405830,0.3608,98890.0,98884.0,0.00015171]
[1737979406031,0.3608,98890.0,98885.0,0.202365]
[1737979406333,0.3608,98890.0,98884.0,0.00015171]
[1737979406542,0.563156,98890.0,98884.0,0.00015171]
[1737979406737,0.283557,98889.0,98884.0,0.00015171]
[1737979406936,0.0812,98889.0,98884.0,0.00015171]
[1737979407138,0.0812,98889.0,98884.0,0.00115171]
[1737979407944,0.0812,98889.0,98884.0,0.00215171]
[1737979408841,0.283558,98889.0,98884.0,0.00215171]
[1737979409031,0.289558,98889.0,98884.0,0.00215171]
[1737979409439,0.0872,98889.0,98884.0,0.00215171]
[1737979409641,0.0812,98889.0,98884.0,0.00015171]
[1737979409844,0.0872,98889.0,98884.0,0.00015171]
[1737979412535,0.0822,98889.0,98884.0,0.00015171]
[1737979412729,0.0882,98889.0,98884.0,0.00115171]
[1737979413340,0.0812,98889.0,98884.0,0.00015171]
[1737979413541,0.0882,98889.0,98884.0,0.00115171]
[1737979413935,0.007,98889.0,98884.0,0.00115171]
[1737979414336,0.007,98889.0,98884.0,0.20351871]
[1737979414535,0.007,98889.0,98885.0,0.0772]
[1737979415947,0.007,98889.0,98888.0,0.202359]
[1737979416144,0.3608,98890.0,98889.0,0.202357]
[1737979416744,0.90492,98908.0,98886.0,0.1592]
[1737979416938,0.3608,98899.0,98892.0,0.20235]
[1737979417135,0.00950122,98904.0,98889.0,0.14765714]
[1737979417342,0.90492,98908.0,98902.0,0.20233]
[1737979417647,0.3608,98908.0,98902.0,0.20233]
[1737979417842,0.00115171,98903.0,98902.0,0.20233]
[1737979418150,0.3608,98921.0,98920.0,0.202293]
[1737979419649,0.3668,98921.0,98920.0,0.203293]
[1737979420450,0.3678,98921.0,98920.0,0.203293]
[1737979421548,0.007,98921.0,98920.0,0.564093]
[1737979421762,0.24066222,98936.0,98920.0,0.3618]
[1737979421962,0.3608,98952.0,98935.0,0.3608]
[1737979422269,0.3608,98952.0,98945.0,0.202242]
[1737979423367,0.15035078,98946.0,98945.0,0.202242]
[1737979423664,0.15635078,98946.0,98945.0,0.202242]
[1737979424061,0.15035078,98946.0,98945.0,0.202242]
[1737979424360,0.15635078,98946.0,98945.0,0.203242]
[1737979426864,0.15635078,98946.0,98945.0,0.001]
[1737979427268,0.15635078,98946.0,98936.0,0.00015163]
[1737979427564,0.3608,98937.0,98936.0,0.00015163]
[1737979429265,0.3618,98937.0,98936.0,0.00015163]
[1737979429471,0.564059,98937.0,98936.0,0.00015163]
[1737979430365,0.563059,98937.0,98936.0,0.00015163]
[1737979430567,0.564059,98937.0,98936.0,0.00115163]
[1737979431468,0.202298,98918.0,98900.0,0.202333]
[1737979431666,0.14765714,98910.0,98898.0,0.2610272]
[1737979431855,0.3608,98903.0,98898.0,0.2610272]
[1737979432363,0.3608,98903.0,98898.0,0.0798]
[1737979432960,0.3608,98903.0,98902.0,0.20233]
[1737979433168,0.3618,98903.0,98902.0,0.20233]
[1737979433369,0.00015163,98910.0,98909.0,0.202316]
[1737979434172,0.3608,98933.0,98909.0,0.202316]
[1737979434173,0.3608,98933.0,98909.0,0.3608]
[1737979434375,0.3608,98933.0,98925.0,0.3608]
[1737979434857,0.3608,98933.0,98909.0,0.3608]
[1737979435062,0.202277,98928.0,98911.0,0.202312]
[1737979435360,0.00015163,98929.0,98914.0,0.202306]
[1737979435561,0.00015163,98929.0,98916.0,0.202301]
[1737979436563,0.00115163,98929.0,98916.0,0.202301]
[1737979436765,0.00115163,98929.0,98917.0,0.3608]
[1737979437265,0.00115163,98929.0,98920.0,0.202293]
[1737979437460,0.00115163,98929.0,98925.0,0.3608]
[1737979437972,0.00115163,98929.0,98927.0,0.202278]
[1737979438268,0.00115163,98929.0,98926.0,0.1653]
[1737979438868,0.00115163,98929.0,98928.0,0.202277]
[1737979439272,0.0114,98954.0,98926.0,0.1653]
[1737979439473,0.0114,98954.0,98936.0,0.3608]
[1737979439669,0.202226,98953.0,98936.0,0.3608]
[1737979439971,0.02086275,98954.0,98940.0,0.202252]
[1737979440359,0.01046275,98954.0,98945.0,0.202241]
[1737979440572,0.001,98954.0,98944.0,0.202243]
[1737979440768,0.001,98954.0,98937.0,0.00015163]
[1737979440976,0.001,98954.0,98951.0,0.56303]
[1737979441271,0.00015163,98957.0,98951.0,0.56303]
[1737979441573,0.001,98953.0,98951.0,0.56303]
[1737979441873,0.001,98953.0,98952.0,0.202228]
[1737979442077,0.001,98953.0,98951.0,0.3608]
[1737979443172,0.3618,98953.0,98939.0,0.202253]
[1737979443475,0.14765714,98950.0,98937.0,0.00115163]
[1737979443866,0.00015163,98957.0,98944.0,0.3608]
[1737979444072,0.00015163,98957.0,98954.0,0.202223]
[1737979444674,0.00015163,98957.0,98952.0,0.3608]
[1737979444675,0.00015163,98957.0,98956.0,0.20222]
[1737979445373,0.00015163,98957.0,98952.0,0.3608]
[1737979445871,0.00015163,98957.0,98956.0,0.20222]
[1737979447576,0.00015163,98957.0,98956.0,0.20322]
[1737979449881,0.00015163,98957.0,98956.0,0.001]
[1737979450177,0.00015163,98957.0,98937.0,0.20240863]
[1737979450373,0.202232,98950.0,98937.0,0.00015163]
[1737979450571,0.28242,98956.0,98937.0,0.00015163]
[1737979451477,0.00015163,98957.0,98948.0,0.202236]
[1737979451976,0.00015163,98957.0,98945.0,0.077]
[1737979452186,0.00015163,98957.0,98956.0,0.56302]
[1737979452771,0.00015163,98957.0,98956.0,0.3608]
[1737979453377,0.00015163,98957.0,98956.0,0.56302]
[1737979454179,0.00015163,98957.0,98956.0,0.3608]
[1737979454573,0.00215163,98957.0,98956.0,0.3618]
[1737979455280,0.00215163,98957.0,98956.0,0.56402]
[1737979455481,0.00215163,98957.0,98956.0,0.3618]
[1737979457277,0.20436963,98957.0,98956.0,0.3618]
[1737979457477,0.20436963,98957.0,98956.0,0.001]
[1737979457783,0.252777,98955.0,98931.0,0.0787]
[1737979458084,0.252777,98955.0,98921.0,0.3608]
[1737979458085,0.3608,98938.0,98923.0,0.0837]
[1737979458480,0.4441,98938.0,98923.0,0.0837]
[1737979459486,0.45386702,98938.0,98923.0,0.0837]
[1737979460074,0.45386702,98938.0,98927.0,0.202279]
[1737979460384,0.37056702,98938.0,98929.0,0.202275]
[1737979460581,0.3608,98938.0,98933.0,0.202267]
[1737979460782,0.3608,98938.0,98937.0,0.00115163]
[1737979461279,0.20236963,98957.0,98937.0,0.00115163]
[1737979461486,0.003,98938.0,98937.0,0.00015163]
[1737979462280,0.003,98938.0,98937.0,0.00115163]
[1737979462677,0.00990368,98955.0,98944.0,0.202244]
[1737979462983,0.00015163,98957.0,98944.0,0.202244]
[1737979462984,0.00015163,98957.0,98946.0,0.20224]
[1737979463481,0.00015163,98957.0,98945.0,0.1596]
[1737979464087,0.00998014,98957.0,98945.0,0.1596]
[1737979464687,0.00015163,98957.0,98953.0,0.3608]
[1737979464890,0.00015163,98957.0,98955.0,0.202221]
[1737979465082,0.00215163,98957.0,98955.0,0.202221]
[1737979465387,0.00215163,98957.0,98955.0,0.202222]
[1737979466392,0.00215163,98957.0,98953.0,0.3608]
[1737979467491,0.01023163,98957.0,98955.0,0.001]
[1737979468096,0.00823163,98957.0,98953.0,0.3608]
[1737979468394,0.01023163,98957.0,98953.0,0.3618]
[1737979469293,0.01023163,98957.0,98955.0,0.001]
[1737979470287,0.01023163,98957.0,98956.0,0.3608]
[1737979471096,0.01023163,98957.0,98956.0,0.56302]
[1737979472196,0.01023163,98957.0,98956.0,0.3608]
[1737979473193,0.00823163,98957.0,98956.0,0.3608]
[1737979473401,0.01023163,98957.0,98956.0,0.56402]
[1737979475499,0.01023163,98957.0,98956.0,0.001]
[1737979476793,0.21244963,98957.0,98956.0,0.001]
[1737979478806,0.202247,98943.0,98937.0,0.00015163]
[1737979479108,0.01023163,98957.0,98937.0,0.00015163]
[1737979479109,0.3608,98938.0,98937.0,0.00015163]
[1737979479302,0.01023163,98957.0,98937.0,0.00015163]
[1737979479501,0.202222,98955.0,98937.0,0.00015163]
[1737979479799,0.01023163,98957.0,98937.0,0.00015163]
[1737979479800,0.21244963,98957.0,98940.0,0.3608]
[1737979480007,0.002,98943.0,98940.0,0.563051]
[1737979480206,0.002,98943.0,98942.0,0.202248]
[1737979480607,0.01023163,98957.0,98944.0,0.202243]
[1737979480818,0.01023163,98957.0,98952.0,0.3608]
[1737979482211,0.00823163,98957.0,98952.0,0.3608]
[1737979483008,0.01223163,98957.0,98952.0,0.3618]
[1737979483203,0.563026,98953.0,98952.0,0.001]
[1737979485209,0.57266136,98953.0,98952.0,0.001]
[1737979485715,0.37043536,98953.0,98937.0,0.00015163]
[1737979486013,0.563044,98945.0,98937.0,0.00015163]
[1737979486214,0.3608,98945.0,98920.0,0.18152592]
[1737979486515,0.202308,98913.0,98912.0,0.18152592]
[1737979488212,0.21177954,98913.0,98912.0,0.18152592]
[1737979488813,0.21177954,98913.0,98912.0,0.18252592]
[1737979489318,0.21377954,98913.0,98912.0,0.18252592]
[1737979489515,0.21377954,98913.0,98912.0,0.001]
[1737979491513,0.01147154,98913.0,98912.0,0.001]
[1737979491911,0.002,98913.0,98912.0,0.001]
[1737979500219,0.002,98913.0,98912.0,0.20331]
[1737979500430,0.00015163,98922.0,98919.0,0.202295]
[1737979500626,0.00015163,98922.0,98920.0,0.0833]
[1737979502133,0.00015163,98922.0,98912.0,0.001]
[1737979502134,0.00515163,98922.0,98912.0,0.001]
[1737979502428,0.10334185,98922.0,98909.0,0.0763]
[1737979503521,0.09834185,98922.0,98909.0,0.0763]
[1737979503720,0.10334185,98922.0,98909.0,0.0763]
[1737979504434,0.10334185,98922.0,98910.0,0.202313]
[1737979504732,0.00515163,98922.0,98910.0,0.202313]
[1737979505120,0.00515163,98922.0,98919.0,0.3608]
[1737979505325,0.00515163,98922.0,98921.0,0.202291]
[1737979506033,0.37164,98946.0,98919.0,0.3608]
[1737979506232,0.37164,98946.0,98920.0,0.09819022]
[1737979506421,0.213081,98946.0,98927.0,0.3608]
[1737979506621,0.3608,98951.0,98943.0,0.202246]
[1737979507127,0.3608,98951.0,98944.0,0.0764]
[1737979508635,0.3608,98951.0,98947.0,0.202238]
[1737979508835,0.00015163,98955.0,98947.0,0.202238]
[1737979509131,0.00015163,98955.0,98954.0,0.202224]
[1737979509336,0.00015163,98955.0,98954.0,0.563024]
[1737979509521,0.00823163,98955.0,98954.0,0.563024]
[1737979510330,0.00823163,98955.0,98954.0,0.564024]
[1737979510634,0.439,98976.0,98964.0,0.202202]
[1737979510834,0.439,98976.0,98968.0,0.3608]
[1737979511032,0.3608,98976.0,98969.0,0.0826]
[1737979511237,0.3608,98976.0,98969.0,0.1633]
[1737979511733,0.24171026,98984.0,98969.0,0.1633]
[1737979511935,0.09819022,98980.0,98969.0,0.1633]
[1737979512330,0.09819022,98980.0,98976.0,0.3608]
[1737979512530,0.00987276,98982.0,98976.0,0.3608]
[1737979513130,0.54444001,98990.0,98976.0,0.3608]
[1737979513131,0.00052001,98990.0,98979.0,0.3608]
[1737979513334,0.1,99000.0,98997.0,0.202136]
[1737979513532,0.00052001,98995.0,98994.0,0.202142]
[1737979513725,0.1,99000.0,98996.0,0.202137]
[1737979514032,0.1,99000.0,98998.0,0.202133]
[1737979515534,0.24171026,99006.0,99005.0,0.20212]
[1737979515730,0.00979705,99028.0,99011.0,0.202108]
[1737979517137,0.5438,99030.0,99011.0,0.202108]
[1737979518139,0.55385984,99030.0,99016.0,0.202096]
[1737979518333,0.65205006,99030.0,99022.0,0.3608]
[1737979518532,0.55385984,99030.0,99022.0,0.3608]
[1737979519035,0.5438,99030.0,99022.0,0.3608]
[1737979519240,0.36132001,99040.0,99022.0,0.3608]
[1737979519441,0.3608,99040.0,99031.0,0.3608]
[1737979519834,0.09819022,99041.0,99031.0,0.3608]
[1737979520143,0.28162945,99044.0,99031.0,0.3608]
[1737979520343,0.27192405,99044.0,99031.0,0.3608]
[1737979520544,0.27192405,99044.0,99039.0,0.3608]
[1737979522651,0.00987065,99046.0,99031.0,0.3618]
[1737979522843,0.09819022,99041.0,99039.0,0.001]
[1737979523039,0.202043,99043.0,99039.0,0.001]
[1737979523757,0.202046,99042.0,99039.0,0.001]
[1737979524547,0.3608,99047.0,99039.0,0.001]
[1737979524846,0.202047,99041.0,99039.0,0.001]
[1737979526650,0.37060377,99047.0,99039.0,0.001]
[1737979527254,0.00980377,99047.0,99039.0,0.001]
[1737979527457,0.3608,99048.0,99039.0,0.001]
[1737979528452,0.3608,99040.0,99039.0,0.001]
[1737979529058,0.562849,99040.0,99039.0,0.001]
[1737979529651,0.3608,99040.0,99039.0,0.001]
[1737979530155,0.3708636,99040.0,99039.0,0.001]
[1737979530356,0.3789336,99040.0,99039.0,0.001]
[1737979530651,0.0181336,99040.0,99039.0,0.001]
[1737979532353,0.0181336,99040.0,99030.0,0.1816774]
[1737979532751,0.0181336,99040.0,99036.0,0.18152592]
[1737979534569,0.202054,99037.0,99036.0,0.18152592]
[1737979535856,0.202054,99037.0,99036.0,0.001]
[1737979536257,0.202067,99031.0,99030.0,0.00015148]
[1737979536458,0.562867,99031.0,99030.0,0.00015148]
[1737979538459,0.3608,99031.0,99011.0,0.00151503]
[1737979538658,0.3608,99021.0,99011.0,0.00151503]
[1737979539053,0.34389022,99030.0,99017.0,0.202093]
[1737979539562,0.34389022,99030.0,99016.0,0.3608]
[1737979539563,0.2457,99030.0,99029.0,0.24227463]
[1737979540260,0.3608,99031.0,99029.0,0.24227463]
[1737979542361,0.00015096,99033.0,99029.0,0.24227463]
[1737979543269,0.00015096,99033.0,99028.0,0.563952]
[1737979543458,0.00015096,99033.0,99031.0,0.202066]
[1737979544069,0.00015096,99033.0,99032.0,0.202065]
[1737979545156,0.00807,99040.0,99029.0,0.2407]
[1737979545457,0.00807,99040.0,99039.0,0.20205]
[1737979550871,0.00807,99040.0,99039.0,0.20305]
[1737979552266,0.00807,99040.0,99039.0,0.61812786]
[1737979552971,0.0839,99066.0,99039.0,0.41707786]
[1737979553268,0.202,99064.0,99053.0,0.202022]
[1737979553470,0.202002,99063.0,99053.0,0.202022]
[1737979553667,0.09370977,99066.0,99053.0,0.202022]
[1737979553867,0.09370977,99066.0,99049.0,0.3608]
[1737979554070,0.202,99064.0,99049.0,0.562829]
[1737979554470,0.202,99064.0,99051.0,0.202025]
[1737979554768,0.09370977,99066.0,99051.0,0.202025]
[1737979554969,0.09370977,99066.0,99052.0,0.202024]
[1737979555674,0.09370977,99066.0,99053.0,0.202021]
[1737979556476,0.54408001,99067.0,99058.0,0.3608]
[1737979556665,0.54356,99067.0,99058.0,0.3608]
[1737979557267,0.54356,99067.0,99066.0,0.201996]
[1737979557467,0.54356,99067.0,99066.0,0.562796]
[1737979557976,0.03027856,99080.0,99072.0,0.201983]
[1737979558171,0.03027856,99080.0,99076.0,0.201974]
[1737979558362,0.03996835,99080.0,99070.0,0.09819022]
[1737979558681,0.03027856,99080.0,99079.0,0.201969]
[1737979560370,0.03027856,99080.0,99079.0,0.202969]
[1737979560561,0.03027856,99080.0,99079.0,0.001]
[1737979560761,0.23224556,99080.0,99079.0,0.001]
[1737979560968,0.03027856,99080.0,99066.0,0.36095148]
[1737979561271,0.12846878,99080.0,99066.0,0.36095148]
[1737979562273,0.201981,99074.0,99066.0,0.36095148]
[1737979562471,0.2412,99073.0,99066.0,0.36095148]
[1737979563576,0.2412,99073.0,99066.0,0.36195148]
[1737979563775,0.2412,99073.0,99066.0,0.00115148]
[1737979564075,0.201984,99072.0,99066.0,0.00115148]
[1737979564373,0.2412,99073.0,99066.0,0.00115148]
[1737979564767,0.201992,99068.0,99066.0,0.00115148]
[1737979565575,0.201994,99067.0,99066.0,0.00115148]
[1737979566076,0.201994,99067.0,99042.0,0.3608]
[1737979566077,0.202007,99061.0,99042.0,0.3608]
[1737979566384,0.3608,99058.0,99042.0,0.3608]
[1737979566871,0.3608,99066.0,99050.0,0.202028]
[1737979567077,0.3608,99066.0,99042.0,0.3608]
[1737979567379,0.3608,99066.0,99048.0,0.0001514]
[1737979567870,0.202006,99061.0,99048.0,0.0001514]
[1737979568076,0.09819022,99060.0,99048.0,0.0001514]
[1737979568480,0.202029,99050.0,99048.0,0.0001514]
[1737979568677,0.3608,99049.0,99048.0,0.0001514]
[1737979568872,0.5975,99049.0,99048.0,0.0001514]
[1737979569474,0.79953,99049.0,99048.0,1e-08]
[1737979569669,0.79953,99049.0,99023.0,0.42356048]
[1737979569670,1.01423664,99049.0,99023.0,0.42356048]
[1737979569982,0.562881,99024.0,99023.0,0.42356048]
[1737979570981,0.202093,99019.0,99017.0,0.00108]
[1737979571180,0.3608,99024.0,99014.0,0.00015148]
[1737979571375,0.3608,99015.0,99014.0,0.00015148]
[1737979571584,0.36132001,99024.0,99014.0,0.00015148]
[1737979571773,0.3608,99024.0,99014.0,0.00015148]
[1737979571973,0.00015148,99033.0,99017.0,0.3608]
[1737979572276,0.00015148,99033.0,99020.0,0.14710847]
[1737979572478,0.00015148,99033.0,99032.0,0.202065]
[1737979573886,0.00115148,99033.0,99032.0,0.202065]
[1737979575670,0.00115148,99033.0,99032.0,0.21204281]
[1737979575983,0.1551,99056.0,99047.0,0.202033]
[1737979576276,0.1551,99056.0,99047.0,0.20183381]
[1737979576477,0.16500039,99056.0,99047.0,0.20183381]
[1737979576983,0.00990039,99056.0,99049.0,0.20203]
[1737979577170,0.14008,99057.0,99049.0,0.20203]
[1737979577477,0.001,99056.0,99047.0,0.001]
[1737979577983,0.001,99056.0,99051.0,0.202026]
[1737979578183,0.001,99056.0,99042.0,0.00015148]
[1737979578383,0.001,99056.0,99054.0,0.20202]
[1737979578683,0.00015141,99061.0,99060.0,0.202008]
[1737979578882,0.54316,99079.0,99055.0,0.52288]
[1737979579186,0.54316,99079.0,99077.0,0.201973]
[1737979579388,0.03027856,99080.0,99070.0,0.3608]
[1737979579677,0.03027856,99080.0,99079.0,0.201969]
[1737979580284,0.14710847,99120.0,99079.0,0.161]
[1737979580487,0.36140001,99113.0,99088.0,0.3608]
[1737979580692,0.3608,99113.0,99098.0,0.20193]
[1737979580878,0.3608,99123.0,99098.0,0.20193]
[1737979581083,0.3608,99132.0,99113.0,0.2019]
[1737979581280,0.54324,99131.0,99113.0,0.55463]
[1737979581989,0.54324,99131.0,99113.0,0.56453978]
[1737979582187,0.54324,99131.0,99113.0,0.55463]
[1737979582880,0.74077217,99130.0,99113.0,0.55463]
[1737979583081,0.3608,99121.0,99106.0,0.201914]
[1737979583483,0.3608,99121.0,99113.0,0.001]
[1737979583985,0.75311671,99130.0,99113.0,0.3618]
[1737979584183,0.3917967,99130.0,99113.0,0.3608]
[1737979584384,0.3917967,99130.0,99121.0,0.201883]
[1737979584585,0.3917967,99130.0,99123.0,0.3608]
[1737979584985,0.54376001,99131.0,99123.0,0.3608]
[1737979585287,0.54324,99131.0,99129.0,0.201866]
[1737979585488,0.3608,99142.0,99123.0,0.3608]
[1737979585690,0.3608,99142.0,99134.0,0.201857]
[1737979586092,0.00997723,99148.0,99134.0,0.201857]
[1737979586391,0.3608,99142.0,99128.0,0.00015132]
[1737979587287,0.371327,99150.0,99133.0,0.201859]
[1737979587487,0.57263299,99150.0,99130.0,0.14710847]
[1737979587685,0.71974146,99150.0,99129.0,0.201867]
[1737979588293,0.57263299,99150.0,99129.0,0.201867]
[1737979588592,0.57263299,99150.0,99130.0,0.201865]
[1737979588795,0.57263299,99150.0,99130.0,0.202865]
[1737979588987,0.37080699,99150.0,99130.0,0.001]
[1737979589187,0.37080699,99150.0,99132.0,0.201861]
[1737979590085,0.14710847,99142.0,99130.0,0.001]
[1737979590292,0.3608,99134.0,99128.0,0.00015132]
[1737979590509,0.3608,99134.0,99129.0,0.001]
[1737979590989,0.3608,99134.0,99128.0,0.00015132]
[1737979591193,0.201859,99133.0,99132.0,0.001]
[1737979591593,0.201859,99133.0,99128.0,0.00015132]
[1737979591796,0.201859,99133.0,99129.0,0.001]
[1737979592487,0.37088973,99134.0,99129.0,0.001]
[1737979592797,0.201864,99131.0,99129.0,0.001]
[1737979592986,0.3608,99134.0,99129.0,0.001]
[1737979593297,0.0804,99141.0,99131.0,0.201862]
[1737979593494,0.3608,99144.0,99132.0,0.001]
[1737979593691,0.3608,99144.0,99138.0,0.201848]
[1737979593892,0.3608,99156.0,99143.0,0.3608]
[1737979594097,0.03025291,99164.0,99163.0,0.201798]
[1737979595092,0.03025291,99164.0,99158.0,0.201807]
[1737979595292,0.03025291,99164.0,99155.0,0.3608]
[1737979596490,0.3608,99156.0,99154.0,0.00015132]
[1737979596893,0.562614,99156.0,99154.0,0.00015132]
[1737979597199,0.0768,99155.0,99154.0,0.00015132]